[Event "The Schackveckan 2023: Göteborg open"]
[Site "Göteborgs schackcentrum, Vegagatan 20, Gothenburg, Sweden"]
[Date "2023.08.12"]
[Round "5.9"]
[White "Wesslen, Ulf"]
[Black "Thern, Alfred"]
[Result "1-0"]
[TimeControl "15 minutes + 5 seconds per move from move one (Round 1 - 4) / 90 minutes + 30 seconds per move from move one (Round 5 - 8)"]
[WhiteFideId "1705199"]
[BlackFideId "1775227"]
[WhiteElo "1916"]
[BlackElo "1643"]

1. Nf3 {[%clk 01:30:19]} {[%emt 00:00:41]} Nf6 {[%clk 01:30:40]} {[%emt
00:00:20]} 2. g3 {[%clk 01:30:32]} {[%emt 00:00:17]} d5 {[%clk 01:30:58]}
{[%emt 00:00:14]} 3. Bg2 {[%clk 01:30:34]} {[%emt 00:00:27]} c5 {[%clk
01:31:12]} {[%emt 00:00:16]} 4. O-O {[%clk 01:29:47]} {[%emt 00:01:16]} Nc6
{[%clk 01:31:22]} {[%emt 00:00:22]} 5. d4 {[%clk 01:29:11]} {[%emt 00:01:06]}
e6 {[%clk 01:31:05]} {[%emt 00:00:47]} 6. b3 {[%clk 01:24:14]} {[%emt
00:05:26]} cxd4 {[%clk 01:28:16]} {[%emt 00:03:18]} 7. Nxd4 {[%clk 01:24:33]}
{[%emt 00:00:11]} e5 {[%clk 01:27:31]} {[%emt 00:01:16]} 8. Nxc6 {[%clk
01:23:19]} {[%emt 00:01:43]} bxc6 {[%clk 01:27:52]} {[%emt 00:00:10]} 9. c4
{[%clk 01:20:43]} {[%emt 00:03:06]} Be6 {[%clk 01:25:08]} {[%emt 00:03:14]} 10.
Bb2 {[%clk 01:19:19]} {[%emt 00:01:54]} Bd6 {[%clk 01:24:22]} {[%emt 00:01:16]}
11. Nc3 {[%clk 01:16:43]} {[%emt 00:03:06]} Be7 {[%clk 01:18:21]} {[%emt
00:06:31]} 12. Rc1 {[%clk 01:11:06]} {[%emt 00:06:05]} a6 {[%clk 01:12:36]}
{[%emt 00:06:17]} 13. Qc2 {[%clk 01:07:30]} {[%emt 00:04:05]} Rc8 {[%clk
01:06:49]} {[%emt 00:06:18]} 14. Rfd1 {[%clk 01:05:23]} {[%emt 00:02:36]} Qc7
{[%clk 01:02:39]} {[%emt 00:04:40]} 15. cxd5 {[%clk 01:01:02]} {[%emt
00:04:51]} cxd5 {[%clk 01:02:46]} {[%emt 00:00:24]} 16. Qd3 {[%clk 00:58:22]}
{[%emt 00:03:09]} Qd6 {[%clk 00:59:50]} {[%emt 00:03:27]} 17. Nxd5 {[%clk
00:55:36]} {[%emt 00:03:15]} Rxc1 {[%clk 00:56:33]} {[%emt 00:03:47]} 18. Nxf6+
{[%clk 00:55:12]} {[%emt 00:00:54]} gxf6 {[%clk 00:56:36]} {[%emt 00:00:28]} 19.
Bxc1 {[%clk 00:53:40]} {[%emt 00:02:02]} Qxd3 {[%clk 00:55:21]} {[%emt
00:01:45]} 20. Rxd3 {[%clk 00:53:17]} {[%emt 00:00:52]} O-O {[%clk 00:53:56]}
{[%emt 00:01:56]} 21. Bh6 {[%clk 00:44:30]} {[%emt 00:09:16]} Rc8 {[%clk
00:51:19]} {[%emt 00:03:07]} 22. Bb7 {[%clk 00:40:51]} {[%emt 00:04:09]} Rc2
{[%clk 00:51:09]} {[%emt 00:00:40]} 23. Rd2 {[%clk 00:38:25]} {[%emt 00:02:56]}
Rc1+ {[%clk 00:49:28]} {[%emt 00:02:12]} 24. Kg2 {[%clk 00:38:41]} {[%emt
00:00:13]} Bc8 {[%clk 00:47:02]} {[%emt 00:02:57]} 25. Bd5 {[%clk 00:36:08]}
{[%emt 00:03:02]} Bb4 {[%clk 00:40:34]} {[%emt 00:06:59]} 26. Rd4 {[%clk
00:32:27]} {[%emt 00:04:10]} exd4 {[%clk 00:39:28]} {[%emt 00:01:37]} 27. Bxc1
{[%clk 00:32:46]} {[%emt 00:00:10]} Kg7 {[%clk 00:38:01]} {[%emt 00:01:58]} 28.
Kf3 {[%clk 00:28:48]} {[%emt 00:04:28]} f5 {[%clk 00:35:27]} {[%emt 00:03:04]}
29. Bb2 {[%clk 00:27:22]} {[%emt 00:01:55]} Bc5 {[%clk 00:31:18]} {[%emt
00:04:39]} 30. e3 {[%clk 00:27:34]} {[%emt 00:00:18]} Be6 {[%clk 00:30:06]}
{[%emt 00:01:43]} 31. Bb7 {[%clk 00:27:11]} {[%emt 00:00:53]} Bd7 {[%clk
00:29:05]} {[%emt 00:01:31]} 32. exd4 {[%clk 00:26:48]} {[%emt 00:00:53]} Be7
{[%clk 00:28:40]} {[%emt 00:00:55]} 33. Bxa6 {[%clk 00:26:39]} {[%emt
00:00:38]} Bf6 {[%clk 00:28:52]} {[%emt 00:00:18]} 34. Kf4 {[%clk 00:25:23]}
{[%emt 00:01:46]} Kg6 {[%clk 00:28:33]} {[%emt 00:00:49]} 35. h4 {[%clk
00:24:27]} {[%emt 00:01:26]} 1-0

[Event "The Schackveckan 2023: Göteborg open"]
[Site "Göteborgs schackcentrum, Vegagatan 20, Gothenburg, Sweden"]
[Date "2023.08.12"]
[Round "5.10"]
[White "Wennerlund, Elias"]
[Black "Granath, Jonas"]
[Result "0-1"]
[TimeControl "15 minutes + 5 seconds per move from move one (Round 1 - 4) / 90 minutes + 30 seconds per move from move one (Round 5 - 8)"]
[WhiteFideId "1742353"]
[BlackFideId "1761013"]
[WhiteElo "1710"]
[BlackElo "1896"]

1. e4 {[%clk 01:30:54]} {[%emt 00:00:05]} e5 {[%clk 01:30:54]} {[%emt
00:00:06]} 2. Nc3 {[%clk 01:31:12]} {[%emt 00:00:13]} Nf6 {[%clk 01:31:06]}
{[%emt 00:00:18]} 3. f4 {[%clk 01:31:33]} {[%emt 00:00:08]} d5 {[%clk
01:31:17]} {[%emt 00:00:19]} 4. fxe5 {[%clk 01:31:58]} {[%emt 00:00:06]} Nxe4
{[%clk 01:31:18]} {[%emt 00:00:29]} 5. Qf3 {[%clk 01:32:15]} {[%emt 00:00:13]}
Nc6 {[%clk 01:30:10]} {[%emt 00:01:39]} 6. Bb5 {[%clk 01:32:34]} {[%emt
00:00:08]} Nxc3 {[%clk 01:30:13]} {[%emt 00:00:29]} 7. dxc3 {[%clk 01:32:56]}
{[%emt 00:00:08]} Qh4+ {[%clk 01:30:28]} {[%emt 00:00:15]} 8. g3 {[%clk
01:33:14]} {[%emt 00:00:12]} Qe4+ {[%clk 01:30:41]} {[%emt 00:00:17]} 9. Qxe4
{[%clk 01:33:36]} {[%emt 00:00:07]} dxe4 {[%clk 01:31:09]} {[%emt 00:00:03]} 10.
Bxc6+ {[%clk 01:33:56]} {[%emt 00:00:10]} bxc6 {[%clk 01:31:32]} {[%emt
00:00:07]} 11. Be3 {[%clk 01:34:07]} {[%emt 00:00:19]} h5 {[%clk 01:11:38]}
{[%emt 00:20:24]} 12. O-O-O {[%clk 01:21:55]} {[%emt 00:12:42]} h4 {[%clk
01:02:50]} {[%emt 00:09:18]} 13. gxh4 {[%clk 01:16:00]} {[%emt 00:06:25]} Bg4
{[%clk 01:02:54]} {[%emt 00:00:25]} 14. Rd4 {[%clk 01:14:27]} {[%emt 00:02:04]}
Bc5 {[%clk 01:01:17]} {[%emt 00:02:07]} 15. Rxe4 {[%clk 01:14:22]} {[%emt
00:00:35]} Bf5 {[%clk 01:01:19]} {[%emt 00:00:27]} 16. Rc4 {[%clk 00:58:07]}
{[%emt 00:16:46]} Bxe3+ {[%clk 01:01:18]} {[%emt 00:00:31]} 17. Kb1 {[%clk
00:58:23]} {[%emt 00:00:13]} Be6 {[%clk 01:00:46]} {[%emt 00:01:03]} 0-1

[Event "The Schackveckan 2023: Göteborg open"]
[Site "Göteborgs schackcentrum, Vegagatan 20, Gothenburg, Sweden"]
[Date "2023.08.12"]
[Round "5.11"]
[White "Johansson, Roy"]
[Black "Granath, Andreas"]
[Result "0-1"]
[TimeControl "15 minutes + 5 seconds per move from move one (Round 1 - 4) / 90 minutes + 30 seconds per move from move one (Round 5 - 8)"]
[WhiteFideId "1745972"]
[BlackFideId "1743333"]
[WhiteElo "1890"]
[BlackElo "1673"]

1. d4 {[%clk 01:30:53]} {[%emt 00:00:06]} Nf6 {[%clk 01:30:52]} {[%emt
00:00:08]} 2. Bf4 {[%clk 01:31:17]} {[%emt 00:00:05]} d5 {[%clk 01:31:15]}
{[%emt 00:00:07]} 3. e3 {[%clk 01:31:42]} {[%emt 00:00:05]} e6 {[%clk
01:31:41]} {[%emt 00:00:05]} 4. Nd2 {[%clk 01:31:58]} {[%emt 00:00:15]} Bd6
{[%clk 01:32:04]} {[%emt 00:00:06]} 5. Bg3 {[%clk 01:32:20]} {[%emt 00:00:08]}
O-O {[%clk 01:32:26]} {[%emt 00:00:07]} 6. Bd3 {[%clk 01:32:25]} {[%emt
00:00:27]} c5 {[%clk 01:32:46]} {[%emt 00:00:10]} 7. c3 {[%clk 01:32:45]}
{[%emt 00:00:10]} Qc7 {[%clk 01:33:03]} {[%emt 00:00:12]} 8. Ngf3 {[%clk
01:32:47]} {[%emt 00:00:29]} Nbd7 {[%clk 01:33:17]} {[%emt 00:00:15]} 9. e4
{[%clk 01:30:06]} {[%emt 00:03:11]} Bxg3 {[%clk 01:25:17]} {[%emt 00:08:30]} 10.
hxg3 {[%clk 01:30:20]} {[%emt 00:00:16]} e5 {[%clk 01:23:42]} {[%emt 00:02:04]}
11. dxe5 {[%clk 01:26:28]} {[%emt 00:04:23]} Nxe5 {[%clk 01:23:35]} {[%emt
00:00:37]} 12. Nxe5 {[%clk 01:26:15]} {[%emt 00:00:44]} dxe4 {[%clk 01:19:34]}
{[%emt 00:04:30]} 13. f4 {[%clk 01:05:49]} {[%emt 00:20:56]} exd3 {[%clk
01:18:31]} {[%emt 00:01:33]} 14. g4 {[%clk 01:05:19]} {[%emt 00:01:00]} Re8
{[%clk 01:14:03]} {[%emt 00:04:58]} 15. Kf1 {[%clk 01:03:59]} {[%emt 00:01:51]}
Bxg4 {[%clk 01:00:49]} {[%emt 00:13:43]} 16. Nxg4 {[%clk 01:02:50]} {[%emt
00:01:39]} Qxf4+ {[%clk 01:01:05]} {[%emt 00:00:13]} 17. Nf2 {[%clk 01:02:21]}
{[%emt 00:00:59]} Re2 {[%clk 01:00:12]} {[%emt 00:01:23]} 18. Nf3 {[%clk
00:59:46]} {[%emt 00:03:06]} Rxf2+ {[%clk 00:48:49]} {[%emt 00:11:52]} 19. Kxf2
{[%clk 00:58:28]} {[%emt 00:01:49]} Ng4+ {[%clk 00:49:12]} {[%emt 00:00:06]} 20.
Kf1 {[%clk 00:55:55]} {[%emt 00:03:04]} Ne3+ {[%clk 00:49:34]} {[%emt
00:00:07]} 21. Ke1 {[%clk 00:56:19]} {[%emt 00:00:06]} Qg3+ {[%clk 00:49:35]}
{[%emt 00:00:29]} 22. Kd2 {[%clk 00:56:33]} {[%emt 00:00:17]} Nxd1 {[%emt
00:01:38]} 0-1

[Event "The Schackveckan 2023: Göteborg open"]
[Site "Göteborgs schackcentrum, Vegagatan 20, Gothenburg, Sweden"]
[Date "2023.08.12"]
[Round "5.12"]
[White "Torres, Lucas"]
[Black "Westlund, Tim"]
[Result "0-1"]
[TimeControl "15 minutes + 5 seconds per move from move one (Round 1 - 4) / 90 minutes + 30 seconds per move from move one (Round 5 - 8)"]
[WhiteFideId "1769464"]
[BlackFideId "1754718"]
[WhiteElo "1501"]
[BlackElo "1861"]

1. e4 {[%clk 01:30:57]} {[%emt 00:00:02]} e5 {[%clk 01:30:50]} {[%emt
00:00:11]} 2. Nf3 {[%clk 01:31:23]} {[%emt 00:00:04]} Nf6 {[%clk 01:31:16]}
{[%emt 00:00:04]} 3. Nxe5 {[%clk 01:31:31]} {[%emt 00:00:21]} d6 {[%clk
01:31:34]} {[%emt 00:00:13]} 4. Nf3 {[%clk 01:31:55]} {[%emt 00:00:06]} Nxe4
{[%clk 01:31:56]} {[%emt 00:00:09]} 5. d3 {[%clk 01:31:56]} {[%emt 00:00:27]}
Nf6 {[%clk 01:32:13]} {[%emt 00:00:14]} 6. Nc3 {[%clk 01:31:31]} {[%emt
00:00:55]} d5 {[%clk 01:31:55]} {[%emt 00:00:49]} 7. d4 {[%clk 01:31:02]}
{[%emt 00:00:58]} c6 {[%clk 01:30:55]} {[%emt 00:01:31]} 8. Bd3 {[%clk
01:31:05]} {[%emt 00:00:26]} Bd6 {[%clk 01:28:08]} {[%emt 00:03:18]} 9. O-O
{[%clk 01:31:13]} {[%emt 00:00:20]} O-O {[%clk 01:28:07]} {[%emt 00:00:32]} 10.
Bg5 {[%clk 01:31:25]} {[%emt 00:00:18]} Bg4 {[%clk 01:27:06]} {[%emt 00:01:30]}
11. Be2 {[%clk 01:30:21]} {[%emt 00:01:33]} Nbd7 {[%clk 01:26:13]} {[%emt
00:01:25]} 12. Ne5 {[%clk 01:27:49]} {[%emt 00:03:02]} Bxe2 {[%clk 01:25:12]}
{[%emt 00:01:32]} 13. Qxe2 {[%clk 01:28:04]} {[%emt 00:00:14]} Re8 {[%clk
01:25:06]} {[%emt 00:00:37]} 14. f4 {[%clk 01:25:56]} {[%emt 00:02:37]} Qb6
{[%clk 01:24:13]} {[%emt 00:01:23]} 15. Qf2 {[%clk 01:14:11]} {[%emt 00:12:14]}
Qxb2 {[%clk 01:19:40]} {[%emt 00:05:03]} 16. Nxd7 {[%clk 01:13:44]} {[%emt
00:00:57]} Nxd7 {[%clk 01:19:26]} {[%emt 00:00:44]} 17. Qd2 {[%clk 01:09:22]}
{[%emt 00:04:52]} Bb4 {[%clk 01:17:05]} {[%emt 00:02:53]} 18. Na4 {[%clk
01:06:55]} {[%emt 00:02:54]} Bxd2 {[%clk 01:15:48]} {[%emt 00:01:49]} 19. Nxb2
{[%clk 01:06:57]} {[%emt 00:00:28]} Bc3 {[%clk 01:16:12]} {[%emt 00:00:06]} 20.
Rab1 {[%clk 01:06:41]} {[%emt 00:00:47]} Bxd4+ {[%clk 01:16:28]} {[%emt
00:00:13]} 21. Kh1 {[%clk 01:07:04]} {[%emt 00:00:06]} Re2 {[%clk 01:14:27]}
{[%emt 00:02:32]} 22. Nd3 {[%clk 01:06:51]} {[%emt 00:00:43]} Bb6 {[%clk
01:13:37]} {[%emt 00:01:20]} 23. Rfc1 {[%clk 00:58:33]} {[%emt 00:08:48]} Rae8
{[%clk 01:11:18]} {[%emt 00:02:48]} 24. a4 {[%clk 00:54:14]} {[%emt 00:04:50]}
Nc5 {[%clk 01:09:33]} {[%emt 00:02:15]} 25. Nxc5 {[%clk 00:53:02]} {[%emt
00:01:43]} Bxc5 {[%clk 01:09:58]} {[%emt 00:00:05]} 26. h3 {[%clk 00:53:06]}
{[%emt 00:00:22]} b6 {[%clk 01:10:08]} {[%emt 00:00:24]} 27. Bh4 {[%clk
00:52:12]} {[%emt 00:01:23]} R2e4 {[%clk 01:08:30]} {[%emt 00:02:08]} 28. Re1
{[%clk 00:51:44]} {[%emt 00:00:58]} Rxe1+ {[%clk 01:08:49]} {[%emt 00:00:12]}
29. Rxe1 {[%clk 00:52:06]} {[%emt 00:00:07]} Rxe1+ {[%clk 01:09:12]} {[%emt
00:00:06]} 30. Bxe1 {[%clk 00:52:23]} {[%emt 00:00:14]} Kf8 {[%clk 01:09:31]}
{[%emt 00:00:12]} 31. Bc3 {[%clk 00:52:33]} {[%emt 00:00:20]} g6 {[%clk
01:09:31]} {[%emt 00:00:29]} 32. g4 {[%clk 00:52:42]} {[%emt 00:00:21]} f5
{[%clk 01:09:31]} {[%emt 00:00:30]} 33. g5 {[%clk 00:53:03]} {[%emt 00:00:10]}
Bd6 {[%clk 01:09:10]} {[%emt 00:00:50]} 34. Bd2 {[%clk 00:53:05]} {[%emt
00:00:29]} a6 {[%clk 01:08:55]} {[%emt 00:00:45]} 35. Kg2 {[%clk 00:53:02]}
{[%emt 00:00:32]} b5 {[%clk 01:09:12]} {[%emt 00:00:13]} 36. axb5 {[%clk
00:53:26]} {[%emt 00:00:07]} axb5 {[%clk 01:09:35]} {[%emt 00:00:07]} 37. Kg3
{[%clk 00:53:13]} {[%emt 00:00:41]} c5 {[%clk 01:09:57]} {[%emt 00:00:10]} 38.
h4 {[%clk 00:53:29]} {[%emt 00:00:13]} b4 {[%clk 01:09:59]} {[%emt 00:00:28]}
39. Kf3 {[%clk 00:53:27]} {[%emt 00:00:32]} d4 {[%clk 01:09:40]} {[%emt
00:00:50]} 40. Ke2 {[%clk 00:53:17]} {[%emt 00:00:39]} c4 {[%clk 01:09:48]}
{[%emt 00:00:22]} 41. Bc1 {[%clk 00:53:35]} {[%emt 00:00:12]} d3+ {[%clk
01:08:02]} {[%emt 00:02:16]} 42. cxd3 {[%clk 00:53:29]} {[%emt 00:00:36]} c3
{[%clk 01:08:28]} {[%emt 00:00:04]} 43. Be3 {[%clk 00:52:50]} {[%emt 00:01:10]}
b3 {[%clk 01:08:52]} {[%emt 00:00:05]} 44. Bd4 {[%clk 00:50:53]} {[%emt
00:02:27]} b2 {[%clk 01:09:16]} {[%emt 00:00:06]} 45. Bxc3 {[%clk 00:51:14]}
{[%emt 00:00:09]} b1=Q {[%clk 01:09:40]} {[%emt 00:00:06]} 0-1

[Event "The Schackveckan 2023: Göteborg open"]
[Site "Göteborgs schackcentrum, Vegagatan 20, Gothenburg, Sweden"]
[Date "2023.08.12"]
[Round "5.13"]
[White "Pintaric, Felix"]
[Black "Johansson, William"]
[Result "0-1"]
[TimeControl "15 minutes + 5 seconds per move from move one (Round 1 - 4) / 90 minutes + 30 seconds per move from move one (Round 5 - 8)"]
[WhiteFideId "1776096"]
[BlackFideId "1744070"]
[WhiteElo "1483"]
[BlackElo "2052"]

1. e4 {[%clk 01:30:49]} {[%emt 00:00:10]} c6 {[%clk 01:14:50]} {[%emt
00:16:12]} 2. d4 {[%clk 01:30:59]} {[%emt 00:00:19]} d5 {[%clk 01:14:16]}
{[%emt 00:01:04]} 3. exd5 {[%clk 01:30:53]} {[%emt 00:00:35]} cxd5 {[%clk
01:14:43]} {[%emt 00:00:05]} 4. Bd3 {[%clk 01:31:15]} {[%emt 00:00:07]} Nc6
{[%clk 01:15:11]} {[%emt 00:00:03]} 5. c3 {[%clk 01:31:37]} {[%emt 00:00:07]}
Qc7 {[%clk 01:15:26]} {[%emt 00:00:16]} 6. Ne2 {[%clk 01:31:07]} {[%emt
00:00:59]} Bg4 {[%clk 01:15:53]} {[%emt 00:00:03]} 7. O-O {[%clk 01:30:25]}
{[%emt 00:01:12]} Nf6 {[%clk 01:14:17]} {[%emt 00:02:07]} 8. h3 {[%clk
01:27:42]} {[%emt 00:03:13]} Bh5 {[%clk 01:13:24]} {[%emt 00:01:23]} 9. f4
{[%clk 01:25:40]} {[%emt 00:02:32]} e6 {[%clk 01:07:20]} {[%emt 00:06:34]} 10.
Nd2 {[%clk 01:25:11]} {[%emt 00:00:59]} Bg6 {[%clk 01:06:58]} {[%emt 00:00:51]}
11. Nf3 {[%clk 01:24:05]} {[%emt 00:01:37]} Bd6 {[%clk 01:05:47]} {[%emt
00:01:41]} 12. Ne5 {[%clk 01:23:14]} {[%emt 00:01:20]} Bxd3 {[%clk 01:04:33]}
{[%emt 00:01:45]} 13. Qxd3 {[%clk 01:22:53]} {[%emt 00:00:50]} Ne4 {[%clk
01:03:50]} {[%emt 00:01:13]} 14. c4 {[%clk 01:19:44]} {[%emt 00:03:39]} f6
{[%clk 00:49:32]} {[%emt 00:14:48]} 15. Nxc6 {[%clk 01:12:06]} {[%emt
00:08:08]} Qxc6 {[%clk 00:48:50]} {[%emt 00:01:12]} 16. c5 {[%clk 01:11:52]}
{[%emt 00:00:45]} Bc7 {[%clk 00:48:57]} {[%emt 00:00:22]} 17. Be3 {[%clk
01:06:42]} {[%emt 00:05:40]} a5 {[%clk 00:45:30]} {[%emt 00:03:57]} 18. Rac1
{[%clk 01:02:49]} {[%emt 00:04:23]} O-O {[%clk 00:44:33]} {[%emt 00:01:27]} 19.
Nc3 {[%clk 00:59:33]} {[%emt 00:03:45]} Nxc3 {[%clk 00:42:18]} {[%emt
00:02:46]} 20. Qxc3 {[%clk 00:57:55]} {[%emt 00:02:08]} Rae8 {[%clk 00:29:36]}
{[%emt 00:13:12]} 21. Kh1 {[%clk 00:57:20]} {[%emt 00:01:05]} Re7 {[%clk
00:28:33]} {[%emt 00:01:32]} 22. Bg1 {[%clk 00:45:00]} {[%emt 00:12:51]} Qb5
{[%clk 00:20:08]} {[%emt 00:08:55]} 23. Bh2 {[%clk 00:42:46]} {[%emt 00:02:43]}
b6 {[%clk 00:16:54]} {[%emt 00:03:45]} 24. c6 {[%clk 00:39:54]} {[%emt
00:03:22]} Bd6 {[%clk 00:16:22]} {[%emt 00:01:03]} 25. Qb3 {[%clk 00:39:48]}
{[%emt 00:00:36]} Qxb3 {[%clk 00:11:19]} {[%emt 00:05:33]} 26. axb3 {[%clk
00:40:16]} {[%emt 00:00:01]} f5 {[%clk 00:11:15]} {[%emt 00:00:34]} 27. Rc2
{[%clk 00:39:09]} {[%emt 00:01:37]} Rc8 {[%clk 00:11:22]} {[%emt 00:00:23]} 28.
Kg1 {[%clk 00:38:54]} {[%emt 00:00:45]} Rec7 {[%clk 00:11:36]} {[%emt
00:00:16]} 29. Rfc1 {[%clk 00:39:00]} {[%emt 00:00:23]} Kf7 {[%clk 00:11:41]}
{[%emt 00:00:25]} 30. Kf2 {[%clk 00:38:50]} {[%emt 00:00:40]} Ke7 {[%clk
00:11:37]} {[%emt 00:00:35]} 31. Ke3 {[%clk 00:34:37]} {[%emt 00:04:43]} Bb4
{[%clk 00:11:19]} {[%emt 00:00:49]} 32. Bg3 {[%clk 00:33:33]} {[%emt 00:01:33]}
Kd6 {[%clk 00:11:29]} {[%emt 00:00:20]} 33. Kd3 {[%clk 00:33:28]} {[%emt
00:00:35]} Rxc6 {[%clk 00:10:25]} {[%emt 00:01:34]} 34. Rxc6+ {[%clk 00:33:32]}
{[%emt 00:00:26]} Rxc6 {[%clk 00:10:53]} {[%emt 00:00:02]} 35. Rxc6+ {[%clk
00:34:01]} Kxc6 {[%clk 00:11:11]} {[%emt 00:00:13]} 36. Bf2 {[%clk 00:33:50]}
{[%emt 00:00:39]} Be7 {[%clk 00:08:32]} {[%emt 00:03:10]} 37. g3 {[%clk
00:32:46]} {[%emt 00:01:34]} Kb5 {[%clk 00:08:39]} {[%emt 00:00:23]} 38. Kc2
{[%clk 00:32:44]} {[%emt 00:00:32]} h5 {[%clk 00:05:10]} {[%emt 00:03:59]} 39.
h4 {[%clk 00:31:03]} {[%emt 00:02:11]} a4 {[%clk 00:02:15]} {[%emt 00:03:26]}
40. Be1 {[%clk 00:30:03]} {[%emt 00:01:29]} a3 {[%clk 00:00:59]} {[%emt
00:01:46]} 41. bxa3 {[%clk 00:30:18]} {[%emt 00:00:15]} Bxa3 {[%clk 00:01:23]}
{[%emt 00:00:06]} 42. Bd2 {[%clk 00:30:22]} {[%emt 00:00:27]} Bb4 {[%clk
00:01:37]} {[%emt 00:00:15]} 43. Bxb4 {[%clk 00:30:37]} {[%emt 00:00:15]} Kxb4
{[%clk 00:02:00]} {[%emt 00:00:07]} 44. Kb2 {[%clk 00:30:49]} {[%emt 00:00:18]}
b5 {[%clk 00:02:19]} {[%emt 00:00:11]} 45. Ka2 {[%clk 00:29:34]} {[%emt
00:01:45]} Kc3 {[%clk 00:02:28]} {[%emt 00:00:21]} 46. Ka3 {[%clk 00:29:59]}
{[%emt 00:00:05]} b4+ {[%clk 00:02:50]} {[%emt 00:00:09]} 47. Ka4 {[%clk
00:29:33]} {[%emt 00:00:56]} g6 {[%clk 00:03:11]} {[%emt 00:00:08]} 0-1